lending/lending_fUSD_20251020
["ID","MTS","AMOUNT","RATE_DAILY","PERIOD"]
[391900821,1760968241327,-2301.40669666,0.00025623,2]
[391900823,1760968241336,-277.35679052,0.00025768,2]
[391900825,1760968241345,-170.6,0.00026058,2]
[391900827,1760968241354,-5461.0,0.000269,2]
[391900829,1760968241364,-21075.2757985,0.00027,2]
[391900831,1760968241373,-1018.02298578,0.00027,2]
[391900833,1760968241382,-4196.6086217,0.00027,2]
[391900835,1760968241391,-530.0,0.00027,2]
[391900837,1760968241400,-150.0,0.00027103,2]
[391900838,1760968241423,-150.0,0.00027103,2]
[391900840,1760968241432,-150.0,0.00027103,2]
[391900841,1760968241441,-150.0,0.00027103,2]
[391900842,1760968241450,-150.0,0.00027103,2]
[391900843,1760968241459,-150.0,0.00027103,2]
[391900844,1760968241469,-150.0,0.00027103,2]
[391900845,1760968241478,-157.0808506,0.00027137,2]
[391900846,1760968241492,-150.0,0.00027158,2]
[391900847,1760968241501,-150.0,0.00027158,2]
[391900848,1760968241510,-150.0,0.00027213,2]
[391900849,1760968241519,-150.0,0.00027213,2]
[391900850,1760968241529,-249.0,0.00027267,2]
[391900851,1760968241538,-150.0,0.00027267,2]
[391900853,1760968241547,-253.0,0.00027322,2]
[391900855,1760968241557,-915.37,0.00027397,2]
[391900857,1760968241567,-510.97,0.00027397,30]
[391900859,1760968241577,-11236.72,0.000274,2]
[391900861,1760968241587,-156.88,0.000274,2]
[391900863,1760968241596,-156.88,0.000274,2]
[391900865,1760968241605,-156.88,0.000274,2]
[391900867,1760968241614,-156.88,0.000274,2]
[391900870,1760968241631,-156.88,0.000274,2]
[391900872,1760968241644,-2683.8116174,0.00027768,2]
[391900874,1760968241654,-2301.40669666,0.00027768,2]
[391900876,1760968241664,-614.39,0.000281,2]
[391900878,1760968241674,-214.34,0.000281,7]
[391900880,1760968241684,-166.66,0.00028107,30]
[391900882,1760968241693,-153.06677192,0.00028687,2]
[391900884,1760968241703,-166.66,0.00028698,30]
[391900887,1760968241712,-5169.86725027,0.00029153,2]
[391900889,1760968241722,-166.66,0.0002929,30]
[391900891,1760968241732,-800.0,0.00029432,7]
[391900893,1760968241741,-500.0,0.00029459,7]
[391900894,1760968241751,-200.0,0.00029606,2]
[391900897,1760968241760,-150.0,0.00029632,2]
[391900898,1760968241770,-500.0,0.00029652,7]
[391900901,1760968241780,-1000.0,0.00029665,2]
[391900903,1760968241790,-500.0,0.00029738,2]
[391900905,1760968241799,-1000.0,0.0002976,7]
[391900907,1760968241809,-500.0,0.00029799,7]
[391900908,1760968241818,-1000.0,0.0002983,7]
[391900911,1760968241828,-600.0,0.00029854,7]
[391900913,1760968241838,-1000.0,0.00029863,5]
[391900915,1760968241847,-166.66,0.00029882,30]
[391900917,1760968241856,-600.0,0.00029896,7]
[391900919,1760968241866,-2683.8116174,0.00029913,2]
[391900921,1760968241875,-2301.40669666,0.00029913,2]
[391900923,1760968241884,-500.0,0.00029921,7]
[391900925,1760968241893,-900.0,0.00029924,7]
[391900927,1760968241902,-1900.0,0.00030034,7]
[391900929,1760968241912,-153.984301,0.00030082,8]
[391900931,1760968241922,-11236.72,0.000301,2]
[391900933,1760968241932,-900.0,0.00030118,7]
[391900935,1760968241940,-900.0,0.00030124,7]
[391900937,1760968241950,-2700.0,0.00030136,7]
[391900939,1760968241960,-800.0,0.00030136,7]
[391900942,1760968241976,-1900.0,0.00030151,7]
[391900945,1760968241999,-600.0,0.00030153,7]
[391900948,1760968242013,-2700.0,0.00030193,7]
[391900950,1760968242025,-614.39,0.000302,2]
[391900952,1760968242038,-214.34,0.000302,30]
[391900955,1760968242053,-700.0,0.00030247,7]
[391900957,1760968242067,-1900.0,0.00030285,7]
[391900960,1760968242080,-8458.77,0.00030288,8]
[391900962,1760968242094,-600.0,0.00030378,7]
[391900965,1760968242108,-1900.0,0.00030443,7]
[391900967,1760968242122,-166.66,0.00030473,30]
[391900970,1760968242137,-1000.0,0.00030579,7]
[391900972,1760968242149,-165.06,0.00030583,2]
[391900974,1760968242159,-900.0,0.0003059,7]
[391900977,1760968242176,-800.0,0.00030597,7]
[391900979,1760968242190,-700.0,0.00030599,7]
[391900982,1760968242202,-1000.0,0.00030607,7]
[391900984,1760968242215,-2700.0,0.00030648,7]
[391900986,1760968242228,-900.0,0.00030654,7]
[391900989,1760968242241,-800.0,0.00030742,7]
[391900991,1760968242254,-1010.0,0.00030751,2]
[391900993,1760968242266,-1900.0,0.00030763,7]
[391900996,1760968242281,-500.0,0.00030771,7]
[391900998,1760968242294,-800.0,0.00030774,7]
[391901001,1760968242307,-800.0,0.00030798,7]
[391901003,1760968242321,-125.97058612,0.00030822,7]
[391901043,1760968242633,-1774.02941388,0.00030822,7]
[391901045,1760968242645,-1800.0,0.0003085,7]
[391901048,1760968242660,-1800.0,0.00030864,7]
[391901050,1760968242672,-1000.0,0.00030877,7]
[391901052,1760968242683,-466.36851445,0.00030893,7]
[391901054,1760968242696,-433.63148555,0.00030893,7]
[391901057,1760968242708,-1900.0,0.00030938,7]
[391901059,1760968242720,-600.76563148,0.00030949,7]
[391901062,1760968242739,-252.636388,0.00030949,7]
[391901064,1760968242753,-146.59798052,0.00030949,7]
[391901066,1760968242763,-700.0,0.00030996,7]
[391901069,1760968242776,-900.0,0.00031,2]
[391901071,1760968242788,-156.0,0.00031,120]
[391901073,1760968242799,-584.307766,0.00031035,3]
[391901076,1760968242813,-81.692234,0.00031035,3]
[391901078,1760968242824,-800.0,0.00031061,7]
[391901080,1760968242835,-166.66,0.00031065,30]
[391901083,1760968242851,-1000.0,0.00031083,7]
[391901085,1760968242863,-1010.0,0.00031114,2]
[391901087,1760968242874,-500.0,0.00031118,7]
[391901089,1760968242886,-159.09,0.00031164,120]
[391901091,1760968242898,-1800.0,0.00031184,7]
[391901094,1760968242909,-2613.78564933,0.00031185,7]
[391901129,1760968243234,-151.0,0.00023288,7]
[391901131,1760968243244,-151.0,0.00024799,7]
[391901133,1760968243254,-86.21435067,0.00031185,7]
[391901134,1760968243263,-60.5949358,0.00031207,7]
[391901146,1760968243464,-400.04794252,0.00031207,7]
[391901151,1760968243499,-439.35712168,0.00031207,7]
[391901153,1760968243509,-1900.0,0.00031275,7]
[391901155,1760968243520,-827.0,0.00031361,2]
[391901157,1760968243531,-500.0,0.00031387,7]
[391901159,1760968243540,-500.0,0.00031398,7]
[391901161,1760968243549,-153.06677192,0.00031445,2]
[391901163,1760968243558,-1900.0,0.00031458,7]
[391901164,1760968243570,-1000.0,0.00031458,7]
[391901167,1760968243580,-11236.72,0.000315,2]
[391901168,1760968243589,-1000.0,0.000315,2]
[391901170,1760968243598,-827.0,0.00031522,2]
[391901172,1760968243607,-159.223,0.00031567,2]
[391901174,1760968243616,-786.0,0.00031567,2]
[391901176,1760968243626,-2051.0,0.00031567,2]
[391901178,1760968243635,-1292.835,0.00031567,2]
[391901180,1760968243644,-3410.0,0.00031567,2]
[391901182,1760968243655,-572.0,0.00031567,2]
[391901185,1760968243664,-605.0,0.00031567,2]
[391901187,1760968243674,-1311.0,0.00031567,2]
[391901188,1760968243683,-1590.0,0.00031567,2]
[391901190,1760968243693,-817.0,0.00031567,2]
[391901192,1760968243702,-6440.0,0.00031567,2]
[391901195,1760968243714,-2591.0,0.00031567,2]
[391901197,1760968243723,-150.0,0.00031567,2]
[391901198,1760968243733,-586.232,0.00031567,2]
[391901201,1760968243742,-6446.0,0.00031567,2]
[391901202,1760968243751,-1010.0,0.00031605,7]
[391901205,1760968243760,-500.0,0.00031621,7]
[391901206,1760968243769,-810.0,0.00031663,7]
[391901209,1760968243779,-827.0,0.00031681,7]
[391901210,1760968243789,-500.0,0.00031723,7]
[391901212,1760968243798,-500.0,0.00031731,7]
[391901215,1760968243807,-2700.0,0.00031748,7]
[391901216,1760968243817,-614.39,0.000318,2]
[391901218,1760968243826,-214.34,0.000318,30]
[391901220,1760968243835,-165.06,0.00031845,2]
[391901222,1760968243844,-600.0,0.00031947,7]
[391901224,1760968243853,-1900.0,0.00031958,7]
[391901226,1760968243863,-902.0,0.00032,3]
[391901228,1760968243872,-600.0,0.00032043,7]
[391901230,1760968243881,-150.16,0.00032047,2]
[391901232,1760968243891,-2683.8116174,0.00032057,2]
[391901234,1760968243901,-2301.40669666,0.00032057,2]
[391901236,1760968243910,-800.0,0.00032066,7]
[391901238,1760968243919,-827.0,0.00032096,2]
[391901240,1760968243928,-600.0,0.00032143,7]
[391901242,1760968243937,-500.71357989,0.00032152,7]
[391901244,1760968243947,-967.0,0.00032153,2]
[391901246,1760968243956,-500.0,0.00032156,7]
[391901248,1760968243966,-151.0,0.00032166,30]
[391901250,1760968243976,-151.0,0.00032166,30]
[391901252,1760968243985,-151.0,0.00032166,30]
[391901254,1760968243995,-151.0,0.00032166,30]
[391901256,1760968244004,-500.0,0.00032206,7]
[391901258,1760968244013,-274.0,0.00032207,2]
[391901260,1760968244022,-16513.84576718,0.00032222,2]
[391901262,1760968244031,-1809.042645,0.00032222,30]
[391901264,1760968244040,-1809.042645,0.00032222,30]
[391901266,1760968244049,-1809.042645,0.00032222,30]
[391901268,1760968244059,-1809.042648,0.00032222,30]
[391901271,1760968244068,-228.0,0.00032269,2]
[391901273,1760968244077,-700.0,0.00032357,7]
[391901275,1760968244087,-700.0,0.00032366,7]
[391901277,1760968244096,-700.0,0.00032369,7]
[391901279,1760968244106,-510.97,0.00032379,30]
[391901281,1760968244116,-1800.0,0.00032379,7]
[391901283,1760968244125,-228.0,0.00032386,2]
[391901285,1760968244134,-1000.0,0.00032401,7]
[391901286,1760968244144,-274.0,0.00032423,2]
[391901288,1760968244153,-228.0,0.00032427,7]
[391901291,1760968244163,-695.75,0.00032532,2]
[391901293,1760968244172,-695.75,0.00032532,2]
[391901295,1760968244183,-695.75,0.00032532,2]
[391901296,1760968244194,-695.75,0.00032532,2]
[391901298,1760968244203,-475.11,0.00032532,2]
[391901300,1760968244214,-695.75,0.00032532,2]
[391901302,1760968244223,-475.11,0.00032532,2]
[391901305,1760968244233,-475.11,0.00032532,2]
[391901306,1760968244242,-695.75,0.00032532,2]
[391901309,1760968244252,-475.11,0.00032532,2]
[391901311,1760968244262,-475.11,0.00032532,2]
[391901312,1760968244272,-1800.0,0.0003254,7]
[391901315,1760968244281,-600.0,0.00032564,7]
[391901317,1760968244291,-511.65,0.00032572,2]
[391901318,1760968244301,-500.0,0.00032576,7]
[391901321,1760968244311,-900.0,0.0003258,7]
[391901323,1760968244321,-700.0,0.00032613,7]
[391901325,1760968244330,-500.0,0.00032643,7]
[391901326,1760968244339,-2700.0,0.00032681,7]
[391901328,1760968244349,-1000.0,0.00032696,7]
[391901330,1760968244359,-600.0,0.00032705,7]
[391901333,1760968244368,-1800.0,0.00032718,7]
[391901335,1760968244378,-164.76754089,0.00032723,7]
[391901336,1760968244387,-2700.0,0.00032723,7]
[391901338,1760968244397,-2700.0,0.00032789,7]
[391901340,1760968244407,-2700.0,0.00032793,7]
[391901342,1760968244416,-500.0,0.00032807,7]
[391901344,1760968244426,-1800.0,0.00032816,7]
[391901347,1760968244435,-2700.0,0.00032864,7]
[391901349,1760968244444,-2684.41,0.00032876,120]
[391901351,1760968244454,-150.0,0.00032877,2]
[391901353,1760968244464,-11236.72,0.000329,2]
[391901354,1760968244474,-150.0,0.00032932,2]
[391901356,1760968244484,-700.0,0.00032933,7]
[391901358,1760968244495,-1900.0,0.00032934,7]
[391901360,1760968244504,-250.0,0.00032945,7]
[391901362,1760968244514,-600.0,0.00032949,7]
[391901364,1760968244523,-700.0,0.0003295,7]
[391901366,1760968244533,-2700.0,0.00032952,7]
[391901368,1760968244543,-500.0,0.00032968,7]
[391901370,1760968244554,-218.22512168,0.00032971,7]
[391901372,1760968244563,-1800.0,0.00032976,7]
[391901374,1760968244573,-209.0205087,0.00032987,2]
[391901376,1760968244582,-151.0,0.00033,14]
[391901378,1760968244591,-800.0,0.00033009,7]
[391901380,1760968244601,-900.0,0.00033058,7]
[391901382,1760968244611,-900.0,0.00033105,7]
[391901384,1760968244621,-165.06,0.00033107,2]
[391901386,1760968244630,-1900.0,0.00033108,7]
[391901388,1760968244639,-274.53159729,0.00033139,2]
[391901390,1760968244648,-1900.0,0.00033167,7]
[391901392,1760968244658,-228.0,0.00033235,2]
[391901394,1760968244667,-736.40934468,0.00033271,2]
[391901397,1760968244677,-700.0,0.00033279,7]
[391901398,1760968244686,-614.39,0.000333,2]
[391901400,1760968244695,-214.34,0.000333,30]
[391901403,1760968244705,-800.0,0.00033316,7]
[391901405,1760968244716,-6971.31,0.00033324,2]
[391901406,1760968244725,-700.0,0.00033344,7]
[391901408,1760968244734,-808.6662066,0.0003335,5]
[391901410,1760968244744,-800.0,0.0003335,7]
[391901412,1760968244753,-228.0,0.00033392,2]
[391901414,1760968244763,-600.0,0.00033429,7]
[391901417,1760968244773,-600.0,0.00033464,7]
[391901419,1760968244782,-487.57,0.00033479,2]
[391901421,1760968244792,-8458.77,0.0003349,8]
[391901423,1760968244801,-950.22,0.00033491,2]
[391901425,1760968244810,-1391.5,0.00033491,2]
[391901427,1760968244820,-695.75,0.00033491,2]
[391901428,1760968244829,-475.11,0.00033491,2]
[391901431,1760968244839,-695.75,0.00033491,2]
[391901433,1760968244848,-695.75,0.00033491,2]
[391901434,1760968244858,-475.11,0.00033491,2]
[391901436,1760968244867,-1390.42,0.00033491,2]
[391901438,1760968244877,-475.11,0.00033491,2]
[391901441,1760968244886,-475.11,0.00033491,2]
[391901443,1760968244895,-695.75,0.00033491,2]
[391901444,1760968244904,-475.11,0.00033491,2]
[391901447,1760968244914,-475.11,0.00033491,2]
[391901449,1760968244923,-941.47,0.00033491,2]
[391901450,1760968244932,-948.08,0.00033491,2]
[391901452,1760968244941,-475.11,0.00033491,2]
[391901455,1760968244951,-475.11,0.00033491,2]
[391901457,1760968244960,-475.11,0.00033491,2]
[391901458,1760968244971,-475.11,0.00033491,2]
[391901459,1760968244981,-475.11,0.00033491,2]
[391901460,1760968244991,-475.11,0.00033491,2]
[391901461,1760968245001,-473.08,0.00033491,2]
[391901462,1760968245010,-475.11,0.00033491,2]
[391901463,1760968245020,-475.11,0.00033491,2]
[391901464,1760968245029,-160.88,0.00033491,2]
[391901465,1760968245038,-500.0,0.00033506,7]
[391901466,1760968245048,-500.0,0.00033561,7]
[391901467,1760968245057,-228.0,0.00033574,7]
[391901468,1760968245066,-2700.0,0.00033576,7]
[391901470,1760968245075,-1000.0,0.00033625,7]
[391901472,1760968245084,-500.7,0.00033666,7]
[391901474,1760968245093,-800.0,0.00033672,7]
[391901476,1760968245103,-1900.0,0.00033687,7]
[391901478,1760968245112,-1000.0,0.00033687,7]
[391901480,1760968245122,-1000.0,0.00033691,7]
[391901482,1760968245131,-228.0,0.00033693,2]
[391901484,1760968245140,-500.0,0.00033699,8]
[391901486,1760968245150,-162.67203958,0.000337,120]
[391901488,1760968245160,-1330.9428935,0.000337,120]
[391901491,1760968245169,-10084.79428216,0.000337,120]
[391901493,1760968245179,-198.00753175,0.000337,120]
[391901494,1760968245188,-171.14830439,0.000337,120]
[391901496,1760968245197,-800.0,0.00033718,7]
[391901498,1760968245207,-500.0,0.00033735,7]
[391901500,1760968245217,-150.0,0.00033765,2]
[391901502,1760968245226,-150.0,0.00033765,2]
[391901505,1760968245236,-361.9,0.00033765,2]
[391901507,1760968245245,-168.35,0.00033765,2]
[391901508,1760968245254,-150.0,0.00033765,2]
[391901510,1760968245263,-150.0,0.00033765,2]
[391901512,1760968245272,-168.35,0.00033765,2]
[391901514,1760968245282,-150.0,0.00033765,2]
[391901516,1760968245291,-150.0,0.00033765,2]
[391901518,1760968245302,-150.0,0.00033765,2]
[391901520,1760968245313,-150.0,0.00033765,2]
[391901522,1760968245322,-800.0,0.00033781,7]
[391901525,1760968245331,-759.96280943,0.00033785,2]
[391901527,1760968245341,-900.0,0.00033808,7]
[391901528,1760968245350,-1800.0,0.00033833,7]
[391901530,1760968245360,-500.0,0.00033926,7]
[391901533,1760968245369,-600.0,0.00033929,7]
[391901534,1760968245379,-2684.41,0.00033972,120]
[391901537,1760968245388,-2000.0,0.00033973,5]
[391901539,1760968245398,-924.39405687,0.00033978,2]
[391901541,1760968245407,-9393.52957622,0.0003399,2]
[391901542,1760968245417,-10617.61,0.00034,2]
[391901545,1760968245427,-1000.0,0.00034,2]
[391901547,1760968245436,-8066.2,0.00034,30]
[391901548,1760968245447,-200.0,0.00034027,10]
[391901550,1760968245457,-180.44341512,0.00034031,2]
[391901553,1760968245469,-600.0,0.00034033,7]
[391901555,1760968245479,-500.0,0.00034087,7]
[391901557,1760968245492,-5274.1044638,0.00034118,2]
[391901559,1760968245501,-150.0,0.00034144,120]
[391901560,1760968245512,-850.13839564,0.0003417,2]
[391901563,1760968245522,-900.0,0.00034188,7]
[391901564,1760968245532,-255.0,0.000342,21]
[391901567,1760968245543,-500.0,0.00034201,8]
[391901569,1760968245553,-176.48089741,0.00034202,2]
[391901571,1760968245563,-2683.8116174,0.00034202,2]
[391901573,1760968245572,-153.06677192,0.00034202,2]
[391901575,1760968245582,-2301.40669666,0.00034202,2]
[391901577,1760968245593,-151.0,0.00034202,14]
[391901579,1760968245602,-1019.0,0.00034221,2]
[391901581,1760968245611,-700.0,0.00034225,7]
[391901583,1760968245620,-28871.0,0.00034274,2]
[391901585,1760968245629,-537.91762867,0.00034281,8]
[391901588,1760968245638,-151.0,0.00034284,14]
[391901590,1760968245647,-335.0147925,0.00034286,2]
[391901592,1760968245656,-500.0,0.00034291,8]
[391901594,1760968245667,-700.0,0.00034299,7]
[391901596,1760968245676,-178.44,0.000343,60]
[391901598,1760968245685,-5800.0,0.000343,2]
[391901600,1760968245694,-15856.70355594,0.000343,2]
[391901602,1760968245703,-500.0,0.00034301,8]
[391901604,1760968245715,-500.0,0.00034301,8]
[391901606,1760968245724,-151.0,0.00034301,2]
[391901608,1760968245733,-151.0,0.00034301,2]
[391901610,1760968245743,-8458.77,0.00034301,8]
[391901611,1760968245752,-8458.77,0.00034301,8]
[391901613,1760968245762,-8458.77,0.00034301,8]
[391901615,1760968245771,-8458.77,0.00034301,8]
[391901617,1760968245780,-8458.77,0.00034301,8]
[391901619,1760968245789,-8458.77,0.00034301,8]
[391901621,1760968245799,-8458.77,0.00034301,8]
[391901623,1760968245808,-8458.96061303,0.00034301,8]
[391901625,1760968245817,-150.0,0.00034301,2]
[391901627,1760968245826,-546.93,0.00034301,2]
[391901629,1760968245836,-150.0,0.00034301,2]
[391901631,1760968245845,-176.13,0.00034301,2]
[391901633,1760968245854,-168.31,0.00034301,2]
[391901635,1760968245864,-413.82,0.00034301,2]
[391901637,1760968245873,-150.0,0.00034301,2]
[391901639,1760968245882,-475.11,0.00034301,2]
[391901641,1760968245891,-475.11,0.00034301,2]
[391901643,1760968245900,-2461.8216966,0.00034301,2]
[391901645,1760968245911,-317679.69265263,0.00034302,120]
[391901779,1760968247277,-66657.64910273,0.00034302,120]
[391901781,1760968247289,-25186.3396482,0.00034302,120]
[391901798,1760968247560,-475.11,0.00032532,2]
[391901800,1760968247571,-1322.09832788,0.00034302,120]
[391901802,1760968247588,-329.68937622,0.00034302,120]
[391901803,1760968247598,-1889.95341066,0.00034302,120]
[391901805,1760968247610,-1346.21627258,0.00034302,120]
[391902325,1760968326389,500.0,0.00034368,30]
[391902326,1760968326998,151.0,0.00034368,30]
[391902327,1760968327031,500.0,0.00034368,30]
[391902328,1760968327659,151.0,0.00034368,30]
[391902329,1760968327745,500.0,0.00034368,30]
[391902330,1760968328244,200.0,0.00034368,30]
[391902332,1760968328661,151.0,0.00034368,30]
[391902333,1760968329206,500.0,0.00034368,30]
[391902334,1760968329371,151.0,0.00034368,30]
[391902335,1760968329614,500.0,0.00034368,30]
[391902336,1760968330075,250.0,0.00034368,30]
[391902337,1760968330146,151.0,0.00034368,30]
[391902338,1760968330216,500.0,0.00034368,30]
[391902339,1760968330271,500.0,0.00034368,30]
[391902342,1760968330697,595.6822837,0.00034368,30]
[391902343,1760968330867,500.0,0.00034368,30]
[391902344,1760968330928,250.0,0.00034368,30]
[391902345,1760968330999,500.0,0.00034368,30]
[391902346,1760968331324,151.0,0.00034368,30]
[391902347,1760968331525,500.0,0.00034368,30]
[391902348,1760968332125,500.0,0.00034368,30]
[391902349,1760968332302,151.0,0.00034368,30]
[391902350,1760968332355,500.0,0.00034368,30]
[391902351,1760968332387,500.0,0.00034368,30]
[391902352,1760968332856,500.0,0.00034368,30]
[391902354,1760968333051,500.0,0.00034368,30]
[391902355,1760968333091,500.0,0.00034368,30]
[391902356,1760968333243,500.0,0.00034368,30]
[391902357,1760968333527,500.0,0.00034368,30]
[391902358,1760968333677,500.0,0.00034368,30]
[391902359,1760968333808,500.0,0.00034368,30]
[391902360,1760968334330,500.0,0.00034368,30]
[391902361,1760968334369,500.0,0.00034368,30]
[391902362,1760968334482,500.0,0.00034368,30]
[391902363,1760968334600,245.91477656,0.00034368,30]
[391902365,1760968334833,250.0,0.00034368,30]
[391902366,1760968335215,500.0,0.00034368,30]
[391902367,1760968335257,500.0,0.00034368,30]
[391902368,1760968335346,500.0,0.00034368,30]
[391902369,1760968335393,500.0,0.00034368,30]
[391902370,1760968335515,250.0,0.00034368,30]
[391902371,1760968335563,500.0,0.00034368,30]
[391902372,1760968335682,500.0,0.00034368,30]
[391902373,1760968335851,500.0,0.00034368,30]
[391902374,1760968335963,500.0,0.00034368,30]
[391902375,1760968336347,500.0,0.00034368,30]
[391902376,1760968336376,250.0,0.00034368,30]
[391902377,1760968336406,500.0,0.00034368,30]
[391902378,1760968336550,500.0,0.00034368,30]
[391902381,1760968336979,500.0,0.00034368,30]
[391902382,1760968337089,250.0,0.00034368,30]
[391902383,1760968337122,500.0,0.00034368,30]
[391902384,1760968337154,500.0,0.00034368,30]
[391902385,1760968337223,500.0,0.00034368,30]
[391902386,1760968337488,422.17439983,0.00034368,30]
[391902387,1760968337668,500.0,0.00034368,30]
[391902388,1760968337786,500.0,0.00034368,30]
[391902389,1760968338029,500.0,0.00034368,30]
[391902390,1760968338077,250.0,0.00034368,30]
[391902392,1760968338336,500.0,0.00034368,30]
[391902393,1760968338407,500.0,0.00034368,30]
[391902394,1760968338700,250.0,0.00034368,30]
[391902395,1760968338732,500.0,0.00034368,30]
[391902396,1760968338762,500.0,0.00034368,30]
[391902397,1760968339121,500.0,0.00034368,30]
[391902398,1760968339389,250.0,0.00034368,30]
[391902399,1760968339422,500.0,0.00034368,30]
[391902400,1760968339457,500.0,0.00034368,30]
[391902401,1760968339500,500.0,0.00034368,30]
[391902403,1760968339906,500.0,0.00034368,30]
[391902404,1760968340088,500.0,0.00034368,30]
[391902405,1760968340188,250.0,0.00034368,30]
[391902406,1760968340236,500.0,0.00034368,30]
[391902407,1760968340307,500.0,0.00034368,30]
[391902408,1760968340586,200.0,0.00034394,30]
[391902409,1760968340619,500.0,0.00034394,30]
[391902410,1760968340729,500.0,0.00034394,30]
[391902411,1760968341176,250.0,0.00034394,30]
[391902412,1760968341208,500.0,0.00034394,30]
[391902413,1760968341394,500.0,0.00034394,30]
[391902414,1760968341467,500.0,0.00034394,30]
[391902415,1760968341913,500.0,0.00034394,30]
[391902416,1760968342061,500.0,0.00034394,30]
[391902417,1760968342092,250.0,0.00034394,30]
[391902418,1760968342416,500.0,0.00034394,30]
[391902419,1760968342671,500.0,0.00034394,30]
[391902420,1760968342967,250.0,0.00034394,30]
[391902421,1760968343063,500.0,0.00034394,30]
[391902422,1760968343331,500.0,0.00034394,30]
[391902423,1760968343756,500.0,0.00034394,30]
[391902424,1760968344137,500.0,0.00034394,30]
[391902425,1760968344465,500.0,0.00034394,30]
[391902426,1760968344855,500.0,0.00034394,30]
[391902427,1760968345143,500.0,0.00034394,30]
[391902428,1760968345588,500.0,0.00034394,30]
[391902429,1760968346053,500.0,0.00034394,30]
[391902430,1760968346133,520.0,0.00034394,30]
[391902431,1760968346260,500.0,0.00034394,30]
[391902432,1760968346833,500.0,0.00034394,30]
[391902433,1760968346927,500.0,0.00034394,30]
[391902434,1760968347546,500.0,0.00034394,30]
[391902435,1760968348501,500.0,0.00034394,30]
[391902436,1760968353180,500.0,0.00034394,30]
[391902437,1760968354100,500.0,0.00034394,30]
[391902438,1760968354801,500.0,0.00034394,30]
[391902439,1760968355849,500.0,0.00034394,30]
[391902441,1760968356537,500.0,0.00034394,30]
[391902442,1760968357349,500.0,0.00034394,30]
[391902443,1760968358004,500.0,0.00034394,30]
[391902446,1760968358674,500.0,0.00034394,30]
[391902447,1760968359328,500.0,0.00034394,30]
[391902448,1760968360221,500.0,0.00034394,30]
[391902449,1760968360906,500.0,0.00034394,30]
[391902452,1760968361613,500.0,0.00034394,30]
[391902459,1760968373732,150.6,0.0003,120]
[391902510,1760968497035,-300.0,0.00014998,2]
[391902511,1760968497056,-500.0,0.00014999,2]
[391902512,1760968497075,-500.0,0.00014999,2]
[391902513,1760968497094,-500.0,0.00014999,2]
[391902514,1760968497116,-443.0,0.00014999,2]
[391902571,1760968625535,500.0,0.00034394,30]